bitfinex-derivatives/quotes_BTCF0:USTF0_20241029
["timestamp","ask_amount","ask_price","bid_price","bid_amount"]
[1730223481639,0.429395,72902.0,72901.0,0.00205748]
[1730223481853,1.929395,72902.0,72901.0,0.02692499]
[1730223482452,1.929395,72902.0,72901.0,0.02486751]
[1730223482658,0.068605,72891.0,72890.0,0.068606]
[1730223483050,0.068565,72891.0,72890.0,0.068606]
[1730223483652,0.10534731,72892.0,72884.0,0.10548]
[1730223483859,0.17395831,72885.0,72884.0,0.068612]
[1730223484161,0.068613,72883.0,72882.0,0.1856]
[1730223484463,0.068613,72883.0,72882.0,0.02422779]
[1730223484649,0.068613,72883.0,72879.0,0.10753797]
[1730223484650,0.46614731,72885.0,72879.0,0.07067397]
[1730223484854,0.068616,72880.0,72879.0,0.07067397]
[1730223486152,0.3608,72885.0,72879.0,0.00205797]
[1730223486352,0.068612,72884.0,72882.0,0.068614]
[1730223486558,0.068612,72884.0,72883.0,0.068613]
[1730223486766,0.068616,72880.0,72879.0,0.02706616]
[1730223486964,0.17396331,72880.0,72879.0,0.02706616]
[1730223487964,0.10531685,72880.0,72879.0,0.50760774]
[1730223488156,0.068616,72880.0,72879.0,0.50760774]
[1730223488360,0.10534731,72884.0,72879.0,0.36035633]
[1730223488661,0.17396331,72880.0,72879.0,0.02706616]
[1730223488863,0.17396331,72880.0,72879.0,0.35926204]
[1730223489054,1.67392331,72880.0,72879.0,0.44343172]
[1730223489259,1.67392331,72880.0,72879.0,0.33425385]
[1730223489556,1.67392331,72880.0,72879.0,0.20568885]
[1730223489864,1.67388331,72880.0,72879.0,0.20568885]
[1730223490065,1.67384331,72880.0,72879.0,0.20568885]
[1730223490460,1.67380331,72880.0,72879.0,0.20568885]
[1730223491365,0.17380331,72880.0,72879.0,0.20568885]
[1730223493459,0.10534731,72880.0,72879.0,0.20568885]
[1730223493655,0.17396331,72880.0,72879.0,0.20568885]
[1730223494661,0.53476331,72880.0,72879.0,0.20568885]
[1730223494858,1.50072,72884.0,72879.0,0.31013509]
[1730223494859,0.00072,72884.0,72879.0,0.31013509]
[1730223495169,0.3608,72887.0,72886.0,0.06861]
[1730223495460,0.3608,72887.0,72886.0,0.27133981]
[1730223495461,0.49356966,72887.0,72886.0,0.27133981]
[1730223495768,0.49352966,72887.0,72886.0,0.27133981]
[1730223496159,0.49352966,72887.0,72886.0,0.27022378]
[1730223496470,0.49352966,72887.0,72886.0,0.09178289]
[1730223496673,0.49352966,72887.0,72886.0,0.20115226]
[1730223496962,0.49352966,72887.0,72886.0,0.09178289]
[1730223497162,0.49348966,72887.0,72886.0,0.16039289]
[1730223497761,0.49348966,72887.0,72886.0,0.2697436]
[1730223497962,0.38810235,72887.0,72886.0,0.2697436]
[1730223498368,0.38806235,72887.0,72886.0,0.26980879]
[1730223498566,0.38802235,72887.0,72886.0,0.26980879]
[1730223498759,0.38798235,72887.0,72886.0,0.16039289]
[1730223499069,0.38794235,72887.0,72886.0,0.16039289]
[1730223499365,0.38790235,72887.0,72886.0,0.16039289]
[1730223499568,0.31929335,72887.0,72886.0,0.16039289]
[1730223499767,0.31925335,72887.0,72886.0,0.16039289]
[1730223500168,0.31921335,72887.0,72886.0,0.16039289]
[1730223500371,0.31917335,72887.0,72886.0,0.26983515]
[1730223500566,0.31917335,72887.0,72886.0,0.2698498]
[1730223500867,0.38774235,72887.0,72886.0,0.2012398]
[1730223501267,0.38770235,72887.0,72886.0,0.2012398]
[1730223501461,0.38766235,72887.0,72886.0,0.2012398]
[1730223501661,0.31897593,72887.0,72886.0,0.2012398]
[1730223501858,0.31893593,72887.0,72886.0,0.2012398]
[1730223502166,0.31885593,72887.0,72886.0,0.20003452]
[1730223502368,0.31881593,72887.0,72886.0,0.20003452]
[1730223502770,0.31877593,72887.0,72886.0,0.20003452]
[1730223502965,0.25012693,72887.0,72885.0,0.078]
[1730223503168,0.06861,72886.0,72885.0,0.078]
[1730223503375,0.06857,72886.0,72885.0,0.078]
[1730223503867,0.06853,72886.0,72885.0,0.078]
[1730223504069,0.06849,72886.0,72885.0,0.078]
[1730223504569,0.06849,72886.0,72885.0,0.10261837]
[1730223510074,0.06849,72886.0,72885.0,0.19429063]
[1730223510276,0.42929,72886.0,72885.0,0.19429063]
[1730223510469,0.42929,72886.0,72885.0,0.30358698]
[1730223510865,0.42929,72886.0,72885.0,0.09167226]
[1730223511672,0.00072,72891.0,72890.0,0.068606]
[1730223511970,0.3608,72901.0,72890.0,0.068606]
[1730223511971,0.3608,72901.0,72890.0,0.30640605]
[1730223512171,0.068597,72900.0,72898.0,0.068598]
[1730223512376,0.068597,72900.0,72899.0,0.56185874]
[1730223512575,0.068587,72911.0,72899.0,0.56185874]
[1730223512576,0.10740533,72906.0,72899.0,0.56185874]
[1730223512777,0.068595,72903.0,72900.0,0.20105874]
[1730223512972,1.50072,72905.0,72901.0,0.20105874]
[1730223513173,1.50072,72905.0,72902.0,0.20105874]
[1730223513174,0.068594,72903.0,72902.0,0.20105874]
[1730223513378,0.17394131,72903.0,72902.0,0.20105874]
[1730223516871,0.17394131,72903.0,72902.0,0.09167226]
[1730223517478,0.17394131,72903.0,72902.0,0.17374366]
[1730223517981,0.068597,72900.0,72899.0,0.13071278]
[1730223518176,0.0008,72905.0,72899.0,0.23606009]
[1730223518376,0.00205802,72906.0,72905.0,0.068592]
[1730223518581,0.3608,72921.0,72905.0,0.1788]
[1730223518779,0.10534731,72918.0,72914.0,0.068584]
[1730223518973,0.10534731,72918.0,72910.0,0.10534731]
[1730223518974,0.10534731,72918.0,72911.0,0.08]
[1730223519178,1.50072,72920.0,72911.0,0.08]
[1730223519379,0.10534731,72919.0,72918.0,0.06858]
[1730223519688,0.17392631,72919.0,72918.0,0.17394]
[1730223519882,0.10534731,72919.0,72918.0,0.17394]
[1730223520378,0.068584,72914.0,72911.0,0.148586]
[1730223520570,0.17393331,72912.0,72911.0,0.08]
[1730223520879,0.17393331,72912.0,72911.0,0.278443]
[1730223521582,0.10534731,72918.0,72917.0,0.068581]
[1730223521778,1.50072,72920.0,72919.0,0.068579]
[1730223521972,1.60534731,72920.0,72919.0,0.03809519]
[1730223522676,1.67392531,72920.0,72919.0,0.03809519]
[1730223523371,0.068581,72918.0,72917.0,0.173941]
[1730223523577,0.17392831,72918.0,72917.0,0.173941]
[1730223523972,0.10534731,72918.0,72917.0,0.173941]
[1730223524684,0.17392731,72918.0,72917.0,0.173941]
[1730223524875,0.17392731,72918.0,72911.0,0.104496]
[1730223524876,0.10534731,72918.0,72911.0,0.104496]
[1730223525072,0.10534731,72914.0,72913.0,0.068584]
[1730223525986,1.5,72920.0,72912.0,0.10536]
[1730223526184,1.50072,72920.0,72919.0,0.068579]
[1730223526378,1.5,72920.0,72919.0,0.068579]
[1730223527485,0.10534731,72932.0,72919.0,0.17392631]
[1730223527690,0.068568,72931.0,72928.0,0.068571]
[1730223527988,1.8608,72929.0,72928.0,0.068571]
[1730223528582,1.92937,72929.0,72928.0,0.068571]
[1730223528987,2.03471731,72929.0,72928.0,0.068571]
[1730223530983,1.92937,72929.0,72928.0,0.068571]
[1730223533296,1.96579694,72929.0,72928.0,0.068571]
[1730223534096,1.96579694,72929.0,72928.0,0.0938845]
[1730223535293,1.89722694,72929.0,72928.0,0.0938845]
[1730223535881,1.96579694,72929.0,72928.0,0.0938845]
[1730223536589,2.00788164,72929.0,72928.0,0.0253135]
[1730223536789,2.00788164,72929.0,72926.0,0.1052]
[1730223536995,0.03642694,72928.0,72927.0,0.068571]
[1730223537184,0.03642694,72928.0,72927.0,0.147971]
[1730223540095,0.06857,72929.0,72927.0,0.17098328]
[1730223540292,0.06857,72929.0,72928.0,0.09158328]
[1730223540497,0.06857,72929.0,72928.0,0.16015428]
[1730223540795,0.068568,72931.0,72930.0,0.068567]
[1730223540995,1.50072,72934.0,72933.0,0.068566]
[1730223541297,1.568565,72934.0,72933.0,0.09158328]
[1730223541887,1.568565,72934.0,72933.0,0.16014928]
[1730223542088,1.5,72934.0,72933.0,0.16014928]
[1730223542296,1.5,72934.0,72933.0,0.09175058]
[1730223543798,1.5,72934.0,72933.0,0.24238798]
[1730223544003,1.5,72934.0,72933.0,0.16031658]
[1730223544501,1.5,72934.0,72933.0,0.24238798]
[1730223545495,1.5,72934.0,72933.0,0.16031658]
[1730223546298,1.5,72934.0,72933.0,0.24237399]
[1730223546501,1.5,72934.0,72933.0,0.24237638]
[1730223546690,1.5,72934.0,72933.0,0.26992696]
[1730223547002,1.5,72934.0,72933.0,0.16031658]
[1730223547604,1.5,72934.0,72933.0,0.2700124]
[1730223549300,1.5,72934.0,72933.0,0.16031658]
[1730223549499,1.60534731,72934.0,72933.0,0.16031658]
[1730223549690,1.67784731,72934.0,72933.0,0.27009838]
[1730223550706,1.67784731,72934.0,72933.0,0.26985952]
[1730223551597,1.67784731,72934.0,72933.0,0.2711916]
[1730223553603,1.60534731,72934.0,72933.0,0.2711916]
[1730223553803,1.60534731,72934.0,72933.0,0.1911916]
[1730223554002,1.60534731,72934.0,72933.0,0.0810063]
[1730223554203,1.68064731,72934.0,72933.0,0.0810063]
[1730223554907,1.74921231,72934.0,72933.0,0.2317373]
[1730223555102,1.7843127,72934.0,72933.0,0.068566]
[1730223556402,1.78343336,72934.0,72933.0,0.068566]
[1730223560911,1.78368841,72934.0,72933.0,0.068566]
[1730223563102,1.60534731,72934.0,72933.0,0.068566]
[1730223563409,0.3608,72935.0,72934.0,0.068565]
[1730223563612,0.429343,72958.0,72957.0,0.068543]
[1730223563802,2.03469031,72958.0,72957.0,0.068543]
[1730223564110,2.03469031,72958.0,72957.0,0.17842042]
[1730223564506,1.96614731,72958.0,72957.0,0.068543]
[1730223565310,1.96614731,72958.0,72957.0,0.17941849]
[1730223565505,1.96614731,72958.0,72957.0,0.068543]
[1730223566616,1.96614731,72958.0,72957.0,0.15050481]
[1730223567409,1.96614731,72958.0,72957.0,0.068543]
[1730223568020,1.99067877,72958.0,72957.0,0.068543]
[1730223568421,1.62987877,72958.0,72957.0,0.068543]
[1730223568811,1.62987877,72958.0,72957.0,0.16140055]
[1730223569921,1.60534731,72958.0,72957.0,0.16140055]
[1730223570219,1.60534731,72958.0,72957.0,0.068543]
[1730223570220,1.73068723,72958.0,72957.0,0.068543]
[1730223570418,1.68152651,72958.0,72957.0,0.068543]
[1730223570622,1.73068723,72958.0,72957.0,0.068543]
[1730223572120,1.79922923,72958.0,72957.0,0.068543]
[1730223572423,1.79922923,72958.0,72957.0,0.04058606]
[1730223574026,1.79868925,72958.0,72957.0,0.04058606]
[1730223574921,1.74952853,72958.0,72957.0,0.04058606]
[1730223575222,1.79869031,72958.0,72957.0,0.04058606]
[1730223576518,1.76249357,72958.0,72957.0,0.04058606]
[1730223577326,1.63769257,72958.0,72957.0,0.04058606]
[1730223580022,1.63769257,72958.0,72935.0,0.47030611]
[1730223580222,0.068558,72941.0,72940.0,0.07061346]
[1730223580424,0.3608,72946.0,72942.0,0.068557]
[1730223580623,0.3608,72946.0,72945.0,0.068555]
[1730223581326,1.8608,72946.0,72945.0,0.068555]
[1730223581733,1.92995057,72946.0,72945.0,0.068555]
[1730223582929,1.56915057,72946.0,72945.0,0.068555]
[1730223585224,0.02467307,72953.0,72952.0,0.068548]
[1730223585532,0.06915057,72953.0,72952.0,0.068548]
[1730223585832,1.56915057,72953.0,72952.0,0.068548]
[1730223586537,1.63769757,72953.0,72952.0,0.068548]
[1730223589437,1.56915057,72953.0,72952.0,0.068548]
[1730223591044,1.63769757,72953.0,72952.0,0.068548]
[1730223591526,0.10105703,72956.0,72955.0,0.068545]
[1730223591527,0.02475703,72956.0,72955.0,0.068545]
[1730223591836,0.3608,72971.0,72960.0,0.068539]
[1730223591837,0.06854,72961.0,72960.0,0.068539]
[1730223592033,0.13769057,72961.0,72960.0,0.068539]
[1730223592335,0.14478645,72961.0,72960.0,0.04252713]
[1730223592529,0.21332645,72961.0,72960.0,0.04252713]
[1730223592842,0.068543,72960.0,72959.0,0.06854]
[1730223593140,0.29871293,72960.0,72959.0,0.06854]
[1730223595333,0.23016993,72960.0,72959.0,0.06854]
[1730223595936,0.12479567,72960.0,72959.0,0.06854]
[1730223596242,0.07563588,72960.0,72959.0,0.06854]
[1730223596941,0.18100476,72960.0,72959.0,0.06854]
[1730223600546,0.10537426,72960.0,72959.0,0.06854]
[1730223601339,0.10537426,72963.0,72959.0,0.06854]
[1730223601542,0.10537426,72963.0,72962.0,0.068539]
[1730223601934,0.10537426,72963.0,72962.0,0.12306925]
[1730223602445,0.10537426,72963.0,72962.0,0.12306662]
[1730223602640,0.10537426,72963.0,72962.0,0.068539]
[1730223603343,0.10537426,72963.0,72962.0,0.12306718]
[1730223605444,0.17391226,72963.0,72962.0,0.12306718]
[1730223606537,0.10537426,72963.0,72962.0,0.12306718]
[1730223607345,0.10537426,72963.0,72957.0,0.46652]
[1730223607346,0.18100595,72963.0,72957.0,0.46652]
[1730223607547,0.07563169,72962.0,72961.0,0.06854]
[1730223608844,0.14417069,72962.0,72961.0,0.06854]
[1730223614562,0.26247315,72962.0,72961.0,0.06854]
[1730223615369,0.13768311,72962.0,72961.0,0.06854]
[1730223616375,0.06854,72961.0,72959.0,0.06822984]
[1730223616681,0.06854,72960.0,72959.0,0.068541]
[1730223617470,0.068544,72956.0,72955.0,0.13677384]
[1730223617766,0.13768811,72956.0,72955.0,0.13677384]
[1730223618377,0.13768811,72956.0,72955.0,0.23538477]
[1730223618573,0.13768811,72956.0,72955.0,0.23536072]
[1730223618872,0.13768811,72956.0,72955.0,0.23536145]
[1730223620469,0.13768811,72956.0,72955.0,0.23542342]
[1730223620771,0.13768811,72956.0,72955.0,0.16713161]
[1730223621966,0.068544,72956.0,72955.0,0.16713161]
[1730223622360,0.14418153,72956.0,72955.0,0.068544]
[1730223622567,0.1686299,72956.0,72955.0,0.068544]
[1730223623075,0.068545,72955.0,72931.0,0.3608]
[1730223623265,0.06914411,72932.0,72931.0,0.429368]
[1730223623464,0.10270959,72932.0,72931.0,0.429368]
[1730223624070,0.03356548,72932.0,72931.0,0.49851211]
[1730223624365,0.07565569,72934.0,72932.0,0.068567]
[1730223624671,0.21336592,72933.0,72932.0,0.068567]
[1730223624872,0.21336809,72933.0,72932.0,0.068567]
[1730223626367,0.17128365,72933.0,72932.0,0.068567]
[1730223626567,0.10271765,72933.0,72932.0,0.068567]
[1730223627872,0.1027199,72933.0,72932.0,0.068567]
[1730223628985,0.1712859,72933.0,72932.0,0.068567]
[1730223629778,0.21337108,72933.0,72932.0,0.068567]
[1730223630277,0.07566097,72933.0,72932.0,0.13771111]
[1730223630573,1.5,72942.0,72941.0,0.068558]
[1730223630774,1.5,72942.0,72941.0,0.50051216]
[1730223631484,1.5,72942.0,72941.0,0.36035533]
[1730223631982,1.63770111,72942.0,72941.0,0.29121122]
[1730223632277,1.63770111,72942.0,72941.0,0.22265322]
[1730223632472,1.568557,72942.0,72941.0,0.22265322]
[1730223633782,1.5,72942.0,72941.0,0.22265322]
[1730223634282,1.568557,72942.0,72941.0,0.31789202]
[1730223634582,1.568557,72942.0,72941.0,0.36161142]
[1730223636483,1.568557,72942.0,72941.0,0.45687561]
[1730223636687,1.568557,72942.0,72941.0,0.52543361]
[1730223636881,1.568557,72942.0,72941.0,0.52530781]
[1730223637075,1.568557,72942.0,72941.0,0.43004506]
[1730223637485,0.10538159,72951.0,72941.0,0.17013515]
[1730223637688,0.068546,72954.0,72951.0,0.068549]
[1730223637985,0.07060522,72952.0,72951.0,0.49874615]
[1730223638583,0.07060522,72952.0,72951.0,0.58039684]
[1730223638883,0.068548,72952.0,72951.0,0.51184784]
[1730223639087,0.068548,72952.0,72951.0,0.43884784]
[1730223639283,0.068548,72952.0,72951.0,0.28791811]
[1730223639479,0.068548,72952.0,72951.0,0.20629715]
[1730223641594,0.068548,72952.0,72951.0,0.20492238]
[1730223643590,0.068548,72952.0,72951.0,0.10020238]
[1730223643790,0.068548,72952.0,72950.0,0.06805883]
[1730223643993,0.10538159,72951.0,72947.0,0.06805883]
[1730223644191,0.17393359,72948.0,72945.0,0.06805883]
[1730223644392,0.068555,72945.0,72944.0,0.06805883]
[1730223644697,0.068555,72945.0,72944.0,0.16883171]
[1730223645593,0.068555,72945.0,72942.0,0.3608]
[1730223645594,0.068556,72943.0,72942.0,0.3608]
[1730223645795,0.068556,72943.0,72942.0,0.429357]
[1730223645796,0.10212692,72943.0,72942.0,0.429357]
[1730223646190,0.068556,72943.0,72942.0,0.429357]
[1730223646986,0.068556,72943.0,72942.0,0.379357]
[1730223647995,0.10212509,72943.0,72942.0,0.379357]
[1730223648194,0.068556,72943.0,72942.0,0.379357]
[1730223648903,0.068546,72955.0,72954.0,0.068546]
[1730223649093,0.068545,72955.0,72954.0,0.3608]
[1730223649287,1.568545,72955.0,72954.0,0.3608]
[1730223652495,1.568545,72955.0,72954.0,0.429346]
[1730223652801,1.568545,72955.0,72954.0,0.41528335]
[1730223653005,1.568545,72955.0,72954.0,0.3608]
[1730223654292,1.568545,72955.0,72954.0,0.429346]
[1730223655399,1.568545,72955.0,72954.0,0.3608]
[1730223655799,1.5,72955.0,72951.0,0.12303235]
[1730223656103,0.068548,72952.0,72951.0,0.068549]
[1730223657704,0.068548,72952.0,72948.0,0.41528335]
[1730223657911,0.18338159,72951.0,72950.0,0.04087396]
[1730223658106,0.18338159,72951.0,72940.0,0.06809814]
[1730223658107,0.068552,72948.0,72947.0,0.04087396]
[1730223658300,0.17393359,72948.0,72942.0,0.04087396]
[1730223658503,0.068557,72942.0,72941.0,0.04087396]
[1730223658813,1.60538159,72942.0,72940.0,0.04087396]
[1730223658996,0.1554,72941.0,72940.0,0.04087396]
[1730223659204,0.1554,72941.0,72936.0,0.41528335]
[1730223659509,0.068559,72940.0,72937.0,0.05448335]
[1730223659711,1.568559,72940.0,72938.0,0.10538159]
[1730223660707,0.06856,72939.0,72938.0,0.08743803]
[1730223661304,1.56856,72939.0,72938.0,0.08743803]
[1730223662503,1.56856,72939.0,72930.0,0.429368]
[1730223662504,1.60538159,72939.0,72930.0,0.429368]
[1730223662698,0.3608,72937.0,72930.0,0.3608]
[1730223662905,0.068568,72931.0,72930.0,0.3608]
[1730223663305,0.068568,72931.0,72930.0,0.38497749]
[1730223663502,0.068568,72931.0,72930.0,0.3608]
[1730223667518,0.0766,72936.0,72930.0,0.58461674]
[1730223667716,0.0766,72936.0,72931.0,0.22381674]
[1730223667717,0.068567,72932.0,72931.0,0.22381674]
[1730223668819,0.068567,72932.0,72931.0,0.10210796]
[1730223669219,0.068567,72932.0,72931.0,0.18392679]
[1730223669715,0.17394859,72932.0,72931.0,0.10210796]
[1730223675620,0.068575,72923.0,72922.0,0.3608]
[1730223676230,0.17395659,72923.0,72922.0,0.3608]
[1730223679521,0.10538159,72923.0,72916.0,0.36285692]
[1730223679823,0.068581,72917.0,72916.0,0.36285692]
[1730223680123,0.068581,72917.0,72916.0,0.38741927]
[1730223682732,0.068581,72917.0,72916.0,0.61057503]
[1730223685833,0.068581,72917.0,72916.0,0.70583657]
[1730223686628,0.068581,72917.0,72916.0,0.75145191]
[1730223691235,0.068581,72917.0,72916.0,0.61057503]
[1730223691438,0.068581,72917.0,72916.0,0.84675783]
[1730223691639,0.068581,72917.0,72916.0,0.7511413]
[1730223692450,0.068581,72917.0,72916.0,0.86001163]
[1730223693151,0.068581,72917.0,72916.0,0.7511413]
[1730223695847,0.068581,72917.0,72916.0,0.86048965]
[1730223696449,0.068581,72917.0,72916.0,0.7511413]
[1730223696652,0.068581,72917.0,72916.0,0.86051167]
[1730223696951,0.068581,72917.0,72916.0,0.7511413]
[1730223697551,0.06917892,72918.0,72916.0,0.7511413]
[1730223697751,0.068581,72917.0,72916.0,0.38741927]
[1730223701348,0.068581,72917.0,72916.0,0.45659819]
[1730223701555,0.068581,72917.0,72916.0,0.45600127]
[1730223705457,0.068581,72917.0,72916.0,0.38741927]
[1730223705653,0.06917892,72920.0,72916.0,0.82241572]
[1730223705851,0.06917892,72920.0,72918.0,0.10940227]
[1730223706050,0.13775692,72920.0,72919.0,0.36641445]
[1730223706267,0.068578,72920.0,72919.0,0.47581672]
[1730223706455,0.068578,72920.0,72919.0,0.36641445]
[1730223706655,0.068578,72920.0,72919.0,0.47581672]
[1730223706956,1.50072,72922.0,72919.0,0.58017672]
[1730223707156,0.068576,72922.0,72921.0,0.06917892]
[1730223707349,0.068576,72922.0,72921.0,0.43559337]
[1730223707553,0.068576,72922.0,72921.0,0.50417037]
[1730223707955,0.02741036,72922.0,72921.0,0.50417037]
[1730223708153,0.068576,72922.0,72921.0,0.43559337]
[1730223708362,0.068576,72922.0,72921.0,0.50417037]
[1730223708861,0.068576,72922.0,72921.0,0.6656528]
[1730223709254,0.3608,72943.0,72921.0,0.91617229]
[1730223709469,0.06917892,72975.0,72936.0,0.42997892]
[1730223709470,0.068562,72937.0,72936.0,0.42997892]
[1730223709666,0.068562,72937.0,72936.0,0.72314825]
[1730223711072,0.068555,72945.0,72939.0,0.068559]
[1730223711264,0.068556,72944.0,72943.0,0.06917892]
[1730223711462,0.068556,72944.0,72943.0,0.29378525]
[1730223712659,0.068556,72944.0,72942.0,0.3608]
[1730223712660,0.03356878,72944.0,72942.0,0.3608]
[1730223712858,0.0738,72946.0,72942.0,0.42997892]
[1730223712859,0.10212478,72943.0,72942.0,0.42997892]
[1730223713662,0.10212478,72943.0,72942.0,0.3608]
[1730223714267,0.10212495,72943.0,72942.0,0.3608]
[1730223716960,0.10212495,72943.0,72942.0,0.42997892]
[1730223718070,1.60212495,72943.0,72942.0,0.42997892]
[1730223718768,1.568556,72943.0,72942.0,0.42997892]
[1730223718969,1.60212464,72943.0,72942.0,0.42997892]
[1730223719172,1.60212464,72943.0,72942.0,0.3608]
[1730223720661,1.568556,72943.0,72942.0,0.3608]
[1730223722076,1.568556,72943.0,72939.0,0.0249755]
[1730223722266,1.568556,72943.0,72936.0,0.43069892]
[1730223722267,0.06917892,72940.0,72936.0,0.36152]
[1730223722466,0.17396119,72937.0,72936.0,0.3608]
[1730223724775,0.068565,72934.0,72924.0,0.04088941]
[1730223724978,0.068565,72934.0,72922.0,0.46496]
[1730223724979,0.068571,72928.0,72925.0,0.04085197]
[1730223725271,0.068572,72926.0,72925.0,0.04085433]
[1730223725977,0.068573,72925.0,72924.0,0.04085433]
[1730223726163,0.068571,72928.0,72923.0,0.04085433]
[1730223726369,0.10539919,72924.0,72923.0,0.04085433]
[1730223726566,0.10539919,72924.0,72922.0,0.3608]
[1730223726767,0.068575,72923.0,72922.0,0.3608]
[1730223727570,0.068575,72923.0,72917.0,0.04085433]
[1730223727571,0.06858,72918.0,72917.0,0.04085433]
[1730223727772,0.17397919,72918.0,72914.0,0.40165433]
[1730223727967,1.63967196,72918.0,72917.0,0.05451922]
[1730223728168,1.60539919,72918.0,72917.0,0.05452976]
[1730223728378,1.60539919,72918.0,72910.0,0.06814902]
[1730223728379,1.60539919,72918.0,72916.0,0.05452976]
[1730223728579,0.144181,72917.0,72916.0,0.05452976]
[1730223729284,0.0756,72917.0,72915.0,0.05452976]
[1730223729471,0.17398119,72916.0,72915.0,0.05452828]
[1730223730478,0.10539919,72916.0,72914.0,0.05452412]
[1730223730670,0.068583,72915.0,72914.0,0.05452412]
[1730223730871,0.068583,72915.0,72914.0,0.05452851]
[1730223731270,0.068583,72915.0,72909.0,0.06814902]
[1730223731478,0.068583,72915.0,72914.0,0.05452712]
[1730223731878,0.068584,72914.0,72913.0,0.05452712]
[1730223732079,0.068588,72909.0,72908.0,0.38663764]
[1730223732280,0.068588,72909.0,72908.0,0.38587764]
[1730223732781,0.068588,72909.0,72908.0,0.45402666]
[1730223732984,0.068588,72909.0,72908.0,0.38587764]
[1730223734486,0.17398719,72909.0,72908.0,0.38587764]
[1730223735372,0.17398719,72909.0,72908.0,0.07959751]
[1730223735583,0.17398719,72909.0,72908.0,0.02507764]
[1730223735773,0.068589,72908.0,72907.0,0.05451987]
[1730223735978,0.068589,72908.0,72901.0,0.00205748]
[1730223736178,0.068595,72902.0,72901.0,0.00205748]
[1730223737579,0.068595,72902.0,72901.0,0.00505748]
[1730223739484,0.068595,72902.0,72901.0,0.00805748]
[1730223740382,1.568595,72902.0,72901.0,0.00805748]
[1730223740584,1.59326657,72902.0,72901.0,0.00805748]
[1730223741682,1.59326657,72902.0,72901.0,0.00505748]
[1730223742883,0.02467157,72902.0,72901.0,0.23421357]
[1730223743088,0.068595,72902.0,72901.0,0.23121357]
[1730223743980,1.568595,72902.0,72901.0,0.23121357]
[1730223746287,1.49996314,72902.0,72901.0,0.23121357]
[1730223746483,1.56855814,72902.0,72901.0,0.23121357]
[1730223748180,1.56855814,72902.0,72901.0,0.22915609]
[1730223748383,1.56855814,72902.0,72901.0,0.10452635]
[1730223748585,1.56855814,72902.0,72901.0,0.22752003]
[1730223749281,1.56855814,72902.0,72901.0,0.10452635]
[1730223749590,1.56855814,72902.0,72901.0,0.22788034]
[1730223749882,1.56855814,72902.0,72894.0,0.429402]
[1730223750081,0.068602,72895.0,72894.0,0.429402]
[1730223750676,0.068602,72895.0,72894.0,0.3608]
[1730223751186,0.068602,72895.0,72894.0,0.38544067]
[1730223751382,0.17400119,72895.0,72894.0,0.38544067]
[1730223752587,0.13779889,72895.0,72894.0,0.38544067]
[1730223754789,0.41156,72894.0,72866.0,0.00072]
[1730223754988,0.13782289,72869.0,72868.0,0.0762]
[1730223756188,0.13782289,72869.0,72868.0,0.10069228]
[1730223756382,0.13782289,72869.0,72868.0,0.02449228]
[1730223756587,0.06863,72865.0,72864.0,0.00072]
[1730223756790,0.068635,72859.0,72858.0,0.069]
[1730223757486,0.068635,72859.0,72858.0,0.09424346]
[1730223757989,0.3608,72869.0,72858.0,0.56266358]
[1730223758190,0.17413053,72859.0,72857.0,0.12281102]
[1730223758395,0.17413053,72859.0,72853.0,0.12273935]
[1730223758396,0.00412549,72858.0,72853.0,0.12273935]
[1730223758596,0.43356149,72858.0,72857.0,0.10911364]
[1730223758890,0.43356149,72858.0,72857.0,0.37421523]
[1730223759094,0.53905702,72858.0,72857.0,0.37421523]
[1730223759481,0.53905702,72858.0,72857.0,0.46961453]
[1730223759686,0.53905702,72858.0,72857.0,0.22936011]
[1730223761590,0.60705702,72858.0,72857.0,0.22936011]
[1730223762187,0.71255255,72858.0,72857.0,0.22936011]
[1730223762589,0.068646,72848.0,72847.0,0.0953993]
[1730223762798,0.53494153,72848.0,72847.0,0.23796509]
[1730223763085,0.068648,72846.0,72845.0,0.09745845]
[1730223763285,0.068648,72846.0,72845.0,0.23776417]
[1730223763484,0.068648,72846.0,72845.0,0.14237485]
[1730223763691,0.068648,72846.0,72845.0,0.25148849]
[1730223764189,0.429448,72846.0,72845.0,0.09523462]
[1730223764405,0.068649,72845.0,72842.0,0.09523462]
[1730223764580,0.068649,72845.0,72841.0,0.09523462]
[1730223764581,0.068651,72842.0,72841.0,0.09523462]
[1730223764786,0.068655,72838.0,72836.0,0.09523462]
[1730223764985,0.17415253,72836.0,72829.0,0.0698]
[1730223765283,0.068665,72828.0,72826.0,0.08162455]
[1730223765485,0.068667,72825.0,72823.0,0.08162455]
[1730223765690,0.57179106,72827.0,72823.0,0.08160781]
[1730223765894,0.57179106,72827.0,72822.0,0.08160781]
[1730223766095,0.06867,72822.0,72821.0,0.00205984]
[1730223766287,0.06867,72822.0,72821.0,0.02719587]
[1730223766483,0.06867,72822.0,72821.0,0.00205984]
[1730223766887,0.068667,72826.0,72824.0,0.068668]
[1730223767188,0.3608,72827.0,72826.0,0.068667]
[1730223767388,0.429466,72827.0,72826.0,0.06792084]
[1730223767582,0.429466,72827.0,72825.0,0.17859553]
[1730223767583,0.068667,72826.0,72825.0,0.17859553]
[1730223767890,0.3608,72827.0,72825.0,0.17859553]
[1730223768097,0.3608,72827.0,72826.0,0.13658676]
[1730223768293,0.3608,72827.0,72826.0,0.20618676]
[1730223768494,0.3608,72827.0,72826.0,0.24376253]
[1730223770391,0.29209827,72827.0,72826.0,0.24376253]
[1730223770895,0.36076427,72827.0,72826.0,0.24376253]
[1730223771890,0.29209827,72827.0,72826.0,0.24376253]
[1730223772992,0.068662,72831.0,72826.0,0.29471467]
[1730223773193,0.068662,72831.0,72830.0,0.17415853]
[1730223773995,0.3608,72833.0,72830.0,0.18691202]
[1730223774189,0.068662,72831.0,72830.0,0.18691202]
[1730223774489,0.068662,72831.0,72830.0,0.10549553]
[1730223774690,0.068662,72831.0,72830.0,0.18692431]
[1730223775085,0.068662,72831.0,72830.0,0.08142878]
[1730223775489,0.068666,72827.0,72826.0,0.19995106]
[1730223775691,0.068666,72827.0,72826.0,0.31817233]
[1730223775999,0.068666,72827.0,72826.0,0.1430768]
[1730223777098,0.068666,72827.0,72826.0,0.14305999]
[1730223777297,0.068666,72827.0,72826.0,0.14405999]
[1730223777503,0.068666,72827.0,72826.0,0.24326746]
[1730223777899,0.429466,72827.0,72826.0,0.24326746]